fUSD/lending_fUSD_20240331
["ID","MTS","AMOUNT","RATE_DAILY","PERIOD"]
[321148496,1711912239385,-155700.63390285,0.00042215,4]
[321148497,1711912239394,-1577.82701751,0.00042216,4]
[321148498,1711912239403,-182.5,0.00043028,2]
[321148499,1711912239411,-155.89988365,0.00043596,30]
[321148500,1711912239422,-599.57,0.00043704,2]
[321148501,1711912239431,-254.56,0.00043713,2]
[321148502,1711912239440,-200.0,0.00044039,2]
[321148503,1711912239449,-423.92528569,0.00044172,19]
[321148504,1711912239458,-1304.67198543,0.00044433,2]
[321148505,1711912239467,-7541.29825587,0.00044484,2]
[321148506,1711912239475,-155.89988365,0.0004474,30]
[321148507,1711912239484,-18622.01873597,0.00045,5]
[321148508,1711912239493,-2242.21430572,0.0004502,5]
[321148509,1711912239502,-800.0,0.0004622,2]
[321148510,1711912239511,-423.92528569,0.00046245,21]
[321148511,1711912239519,-254.56,0.00046453,2]
[321148512,1711912239529,-403.0427107,0.00046459,2]
[321148513,1711912239538,-1304.67198543,0.00046867,2]
[321148514,1711912239547,-7541.29825587,0.00046911,2]
[321148515,1711912239556,-159.18694307,0.00047536,13]
[321148516,1711912239565,-157.76943012,0.00047766,30]
[321148517,1711912239574,-150.5,0.00047769,15]
[321148518,1711912239585,-150.5,0.00047779,15]
[321148519,1711912239594,-150.5,0.00047789,15]
[321148520,1711912239604,-154.1,0.0004779,2]
[321148521,1711912239613,-138029.19888803,0.000478,120]
[321148522,1711912239621,-154.03,0.000479,6]
[321148523,1711912239630,-154.03,0.000479,6]
[321148524,1711912239639,-154.03,0.000479,6]
[321148525,1711912239648,-151.0,0.00048,120]
[321148526,1711912239657,-182.5,0.00048248,2]
[321148527,1711912239667,-423.92528569,0.00048317,24]
[321148528,1711912239676,-1304.67198543,0.000493,2]
[321148529,1711912239685,-804.98376774,0.00049315,60]
[321148531,1711912239694,-7541.29825587,0.00049338,2]
[321148532,1711912239703,-200.0,0.00049544,120]
[321148533,1711912239711,-151.0,0.00049616,120]
[321148534,1711912239720,-440.12783223,0.00049806,30]
[321148535,1711912239729,-151.0,0.0005,120]
[321148536,1711912239743,-1871.63896994,0.0005,120]
[321148537,1711912239753,-810.0,0.0005,9]
[321148538,1711912239763,-154.72304952,0.00050037,60]
[321148539,1711912239772,-155.39690538,0.00050305,60]
[321148540,1711912239782,-423.92528569,0.0005039,27]
[321148541,1711912239791,-152.72697524,0.00050725,60]
[321148542,1711912239800,-1021.00032545,0.0005087,120]
[321148543,1711912239809,-151.0,0.00051233,120]
[321148544,1711912239818,-800.0,0.00051355,120]
[321148545,1711912239829,-151.032606,0.00051748,83]
[321148546,1711912239839,-7541.29825587,0.00051765,2]
[321148547,1711912239848,-150.0,0.00051977,2]
[321148548,1711912239858,-209.66785289,0.0005202,4]
[321148550,1711912239868,-784.45,0.00052266,120]
[321148551,1711912239877,-423.92528569,0.00052463,29]
[321148552,1711912239886,-151.0,0.00052849,120]
[321148553,1711912239895,-159.18694307,0.00052989,14]
[321148554,1711912239904,-182.5,0.00053468,2]
[321148555,1711912239913,-151.0,0.00053644,120]
[321148556,1711912239923,-154.03,0.000538,7]
[321148557,1711912239932,-154.03,0.000538,7]
[321148558,1711912239941,-154.03,0.000538,7]
[321148559,1711912239950,-2957.0,0.00053898,120]
[321148560,1711912239959,-150.355,0.00053898,120]
[321148561,1711912239968,-1625.0,0.00053898,120]
[321148562,1711912239977,-2420.0,0.00053898,120]
[321148563,1711912239986,-344.018,0.00053898,120]
[321148564,1711912239996,-150.0,0.00054078,120]
[321148565,1711912240005,-7541.29825587,0.00054192,2]
[321148566,1711912240015,-151.0,0.00054466,120]
[321148567,1711912240025,-423.92528569,0.00054536,32]
[321148568,1711912240034,-2014.0,0.0005457,117]
[321148569,1711912240044,-154.1,0.00054784,120]
[321148570,1711912240053,-500.0,0.00054794,120]
[321148571,1711912240061,-500.0,0.00054794,120]
[321148572,1711912240070,-500.0,0.00054794,120]
[321148573,1711912240079,-500.0,0.00054794,120]
[321148574,1711912240087,-549.74254758,0.00054794,120]
[321148575,1711912240096,-516.38892747,0.00054794,120]
[321148576,1711912240105,-466.1544079,0.00054794,120]
[321148577,1711912240114,-500.0,0.00054794,120]
[321148578,1711912240123,-500.0,0.00054794,120]
[321148579,1711912240132,-537.26787824,0.00054794,120]
[321148580,1711912240141,-500.0,0.00054794,120]
[321148581,1711912240150,-500.0,0.00054794,120]
[321148582,1711912240159,-500.0,0.00054794,120]
[321148583,1711912240168,-500.0,0.00054794,120]
[321148584,1711912240177,-500.0,0.00054794,120]
[321148585,1711912240186,-581.29604014,0.00054794,120]
[321148586,1711912240194,-500.0,0.00054794,120]
[321148587,1711912240204,-500.0,0.00054794,120]
[321148588,1711912240213,-500.0,0.00054794,120]
[321148589,1711912240222,-601.85,0.00054794,120]
[321148590,1711912240232,-630.29532587,0.00054794,120]
[321148591,1711912240240,-500.0,0.00054794,120]
[321148592,1711912240249,-577.96395169,0.00054794,120]
[321148593,1711912240258,-522.22648881,0.00054794,120]
[321148594,1711912240267,-590.77,0.00054794,120]
[321148595,1711912240277,-500.0,0.00054794,120]
[321148596,1711912240285,-500.0,0.00054794,120]
[321148597,1711912240295,-500.0,0.00054794,120]
[321148598,1711912240304,-500.0,0.00054794,120]
[321148599,1711912240313,-500.0,0.00054794,120]
[321148600,1711912240322,-500.0,0.00054794,120]
[321148601,1711912240331,-566.48,0.00054794,120]
[321148602,1711912240340,-500.0,0.00054794,120]
[321148603,1711912240350,-500.0,0.00054794,120]
[321148604,1711912240359,-500.0,0.00054794,120]
[321148605,1711912240368,-500.0,0.00054794,120]
[321148606,1711912240378,-500.0,0.00054794,120]
[321148607,1711912240387,-459.25,0.00054794,120]
[321148608,1711912240396,-344.450303,0.00054794,120]
[321148609,1711912240406,-500.0,0.00054794,120]
[321148610,1711912240415,-172.52867956,0.00054794,120]
[321148611,1711912240429,-500.0,0.00054794,120]
[321148612,1711912240437,-500.0,0.00054794,120]
[321148613,1711912240446,-500.0,0.00054794,120]
[321148614,1711912240455,-500.0,0.00054794,120]
[321148615,1711912240465,-602.15,0.00054794,120]
[321148616,1711912240473,-500.0,0.00054794,120]
[321148617,1711912240482,-500.0,0.00054794,120]
[321148618,1711912240491,-500.0,0.00054794,120]
[321148619,1711912240500,-500.0,0.00054794,120]
[321148620,1711912240510,-500.0,0.00054794,120]
[321148621,1711912240520,-500.0,0.00054794,120]
[321148622,1711912240531,-500.0,0.00054794,120]
[321148623,1711912240539,-500.0,0.00054794,120]
[321148624,1711912240549,-500.0,0.00054794,120]
[321148625,1711912240558,-500.0,0.00054794,120]
[321148626,1711912240567,-500.0,0.00054794,120]
[321148627,1711912240576,-500.0,0.00054794,120]
[321148628,1711912240584,-518.14601513,0.00054794,120]
[321148629,1711912240593,-500.0,0.00054794,120]
[321148630,1711912240602,-560.03,0.00054794,30]
[321148631,1711912240611,-500.0,0.00054794,120]
[321148632,1711912240620,-500.0,0.00054794,120]
[321148633,1711912240629,-500.0,0.00054794,120]
[321148634,1711912240639,-500.0,0.00054794,120]
[321148635,1711912240648,-500.0,0.00054794,120]
[321148636,1711912240657,-500.0,0.00054794,120]
[321148637,1711912240668,-500.0,0.00054794,120]
[321148638,1711912240677,-500.0,0.00054794,120]
[321148639,1711912240686,-500.0,0.00054794,120]
[321148640,1711912240695,-500.0,0.00054794,120]
[321148641,1711912240703,-500.0,0.00054794,120]
[321148642,1711912240712,-500.0,0.00054794,120]
[321148643,1711912240721,-500.0,0.00054794,30]
[321148644,1711912240730,-500.0,0.00054794,120]
[321148645,1711912240740,-575.74660817,0.00054794,120]
[321148646,1711912240749,-500.0,0.00054794,120]
[321148647,1711912240762,-500.0,0.00054794,120]
[321148648,1711912240771,-500.0,0.00054794,120]
[321148649,1711912240780,-500.0,0.00054794,120]
[321148650,1711912240789,-500.0,0.00054794,120]
[321148651,1711912240799,-500.0,0.00054794,120]
[321148652,1711912240808,-153.17176742,0.00054794,120]
[321148653,1711912240817,-507.53033713,0.00054794,120]
[321148654,1711912240826,-500.0,0.00054794,120]
[321148655,1711912240838,-500.0,0.00054794,120]
[321148656,1711912240847,-500.0,0.00054794,120]
[321148657,1711912240856,-500.0,0.00054794,120]
[321148658,1711912240865,-500.0,0.00054794,120]
[321148659,1711912240875,-150.0,0.00054794,120]
[321148660,1711912240884,-500.0,0.00054794,120]
[321148661,1711912240893,-500.0,0.00054794,120]
[321148662,1711912240902,-500.0,0.00054794,120]
[321148663,1711912240911,-500.0,0.00054794,120]
[321148664,1711912240921,-597.49860048,0.00054794,120]
[321148665,1711912240930,-512.31,0.00054794,120]
[321148666,1711912240939,-500.0,0.00054794,120]
[321148667,1711912240948,-500.0,0.00054794,120]
[321148668,1711912240957,-500.0,0.00054794,120]
[321148669,1711912240966,-566.11,0.00054794,120]
[321148670,1711912240975,-509.34435462,0.00054794,120]
[321148671,1711912240984,-500.0,0.00054794,120]
[321148672,1711912240993,-500.0,0.00054794,120]
[321148673,1711912241002,-608.79,0.00054794,120]
[321148674,1711912241011,-500.0,0.00054794,120]
[321148675,1711912241020,-500.0,0.00054794,120]
[321148676,1711912241029,-500.0,0.00054794,120]
[321148677,1711912241038,-548.48112282,0.00054794,120]
[321148678,1711912241049,-500.0,0.00054794,120]
[321148679,1711912241058,-500.0,0.00054794,120]
[321148680,1711912241067,-500.0,0.00054794,120]
[321148681,1711912241076,-538.4227015,0.00054794,120]
[321148682,1711912241086,-500.0,0.00054794,120]
[321148683,1711912241095,-500.0,0.00054794,120]
[321148684,1711912241104,-467.60113878,0.00054794,120]
[321148685,1711912241113,-515.73910746,0.00054794,120]
[321148686,1711912241122,-156.64,0.00054794,120]
[321148687,1711912241131,-500.0,0.00054794,2]
[321148688,1711912241140,-500.0,0.00054794,120]
[321148689,1711912241150,-500.0,0.00054794,120]
[321148690,1711912241159,-519.68829616,0.00054794,120]
[321148691,1711912241170,-500.0,0.00054794,120]
[321148692,1711912241179,-344.28777183,0.00054794,120]
[321148693,1711912241188,-500.0,0.00054794,120]
[321148694,1711912241197,-500.0,0.00054794,120]
[321148695,1711912241206,-500.0,0.00054794,120]
[321148696,1711912241215,-500.0,0.00054794,120]
[321148697,1711912241224,-438.82039898,0.00054794,120]
[321148698,1711912241233,-500.0,0.00054794,120]
[321148699,1711912241241,-500.0,0.00054794,120]
[321148700,1711912241251,-500.0,0.00054794,120]
[321148701,1711912241259,-500.0,0.00054794,120]
[321148702,1711912241269,-500.0,0.00054794,120]
[321148703,1711912241278,-500.0,0.00054794,120]
[321148704,1711912241287,-500.0,0.00054794,120]
[321148705,1711912241296,-500.0,0.00054794,120]
[321148706,1711912241305,-500.0,0.00054794,120]
[321148707,1711912241314,-500.0,0.00054794,120]
[321148708,1711912241323,-500.0,0.00054794,120]
[321148709,1711912241332,-500.0,0.00054794,120]
[321148710,1711912241341,-500.0,0.00054794,120]
[321148711,1711912241351,-514.28341459,0.00054794,120]
[321148712,1711912241361,-500.0,0.00054794,120]
[321148713,1711912241371,-500.0,0.00054794,120]
[321148714,1711912241382,-500.0,0.00054794,120]
[321148715,1711912241391,-500.0,0.00054794,120]
[321148716,1711912241400,-531.73299214,0.00054794,120]
[321148717,1711912241410,-500.0,0.00054794,120]
[321148718,1711912241421,-500.0,0.00054794,120]
[321148719,1711912241430,-500.0,0.00054794,120]
[321148720,1711912241439,-500.0,0.00054794,120]
[321148721,1711912241449,-500.0,0.00054794,120]
[321148722,1711912241458,-500.0,0.00054794,120]
[321148723,1711912241467,-500.0,0.00054794,120]
[321148724,1711912241476,-500.0,0.00054794,120]
[321148725,1711912241485,-500.0,0.00054794,120]
[321148726,1711912241494,-544.28,0.00054794,120]
[321148727,1711912241503,-500.0,0.00054794,120]
[321148728,1711912241512,-514.63453777,0.00054794,120]
[321148729,1711912241521,-500.0,0.00054794,120]
[321148730,1711912241530,-500.0,0.00054794,120]
[321148731,1711912241539,-566.9080904,0.00054794,120]
[321148732,1711912241549,-500.0,0.00054794,120]
[321148733,1711912241558,-500.0,0.00054794,120]
[321148734,1711912241567,-500.0,0.00054794,120]
[321148735,1711912241576,-602.81062381,0.00054794,120]
[321148736,1711912241586,-500.0,0.00054794,120]
[321148737,1711912241595,-500.0,0.00054794,120]
[321148738,1711912241603,-223.06715628,0.00054794,120]
[321148739,1711912241613,-633.93,0.00054794,120]
[321148740,1711912241622,-500.0,0.00054794,120]
[321148741,1711912241631,-500.0,0.00054794,120]
[321148742,1711912241640,-500.0,0.00054794,120]
[321148743,1711912241650,-500.0,0.00054794,120]
[321148744,1711912241659,-500.0,0.00054794,120]
[321148745,1711912241669,-507.74651504,0.00054794,120]
[321148746,1711912241678,-500.0,0.00054794,120]
[321148747,1711912241686,-500.0,0.00054794,120]
[321148748,1711912241696,-500.0,0.00054794,120]
[321148749,1711912241705,-500.0,0.00054794,7]
[321148750,1711912241713,-523.37235203,0.00054794,120]
[321148751,1711912241722,-512.28590537,0.00054794,120]
[321148752,1711912241732,-500.0,0.00054794,120]
[321148753,1711912241741,-500.0,0.00054794,120]
[321148754,1711912241751,-500.0,0.00054794,120]
[321148755,1711912241762,-500.0,0.00054794,120]
[321148756,1711912241771,-500.0,0.00054794,120]
[321148757,1711912241781,-409.15701603,0.00054794,120]
[321148758,1711912241790,-509.46881084,0.00054794,120]
[321148759,1711912241799,-507.79912553,0.00054794,120]
[321148760,1711912241807,-500.0,0.00054794,120]
[321148761,1711912241817,-500.0,0.00054794,120]
[321148762,1711912241826,-500.0,0.00054794,120]
[321148763,1711912241836,-500.0,0.00054794,120]
[321148764,1711912241845,-500.0,0.00054794,120]
[321148765,1711912241854,-500.0,0.00054794,120]
[321148766,1711912241863,-500.0,0.00054794,120]
[321148767,1711912241872,-518.40646569,0.00054794,120]
[321148768,1711912241881,-500.0,0.00054794,120]
[321148769,1711912241890,-507.73270947,0.00054794,120]
[321148770,1711912241899,-500.0,0.00054794,120]
[321148771,1711912241908,-500.0,0.00054794,120]
[321148772,1711912241918,-500.0,0.00054794,50]
[321148773,1711912241927,-500.0,0.00054794,120]
[321148774,1711912241936,-500.0,0.00054794,120]
[321148775,1711912241945,-500.0,0.00054794,120]
[321148776,1711912241955,-500.0,0.00054794,120]
[321148777,1711912241964,-209.07227936,0.00054794,120]
[321148778,1711912241973,-500.0,0.00054794,120]
[321148779,1711912241983,-500.0,0.00054794,120]
[321148780,1711912241991,-272.00677194,0.00054794,120]
[321148781,1711912242000,-500.0,0.00054794,120]
[321148782,1711912242009,-500.0,0.00054794,120]
[321148783,1711912242019,-500.0,0.00054794,120]
[321148784,1711912242027,-500.0,0.00054794,120]
[321148785,1711912242037,-500.0,0.00054794,120]
[321148786,1711912242046,-500.0,0.00054794,120]
[321148787,1711912242055,-500.0,0.00054794,120]
[321148788,1711912242064,-554.28977464,0.00054794,120]
[321148789,1711912242072,-500.0,0.00054794,120]
[321148790,1711912242081,-500.0,0.00054794,120]
[321148791,1711912242090,-265.58750236,0.00054794,120]
[321148792,1711912242099,-640.67,0.00054794,120]
[321148793,1711912242108,-343.0775705,0.00054794,120]
[321148794,1711912242118,-500.0,0.00054794,120]
[321148795,1711912242127,-500.0,0.00054794,120]
[321148796,1711912242136,-500.0,0.00054794,120]
[321148797,1711912242145,-500.0,0.00054794,120]
[321148798,1711912242154,-500.0,0.00054794,120]
[321148799,1711912242163,-500.0,0.00054794,120]
[321148800,1711912242174,-500.0,0.00054794,120]
[321148801,1711912242183,-508.99793812,0.00054794,120]
[321148802,1711912242191,-500.0,0.00054794,120]
[321148803,1711912242200,-1467.9,0.00054794,120]
[321148804,1711912242209,-500.0,0.00054794,120]
[321148805,1711912242219,-500.0,0.00054794,120]
[321148806,1711912242227,-500.0,0.00054794,120]
[321148807,1711912242236,-500.0,0.00054794,120]
[321148808,1711912242245,-500.0,0.00054794,120]
[321148809,1711912242254,-192.32272522,0.00054794,120]
[321148810,1711912242262,-500.0,0.00054794,60]
[321148811,1711912242271,-500.0,0.00054794,120]
[321148812,1711912242280,-500.0,0.00054794,120]
[321148813,1711912242289,-6764.27,0.00054794,120]
[321148814,1711912242298,-525.34048343,0.00054794,120]
[321148815,1711912242307,-500.0,0.00054794,120]
[321148816,1711912242317,-500.0,0.00054794,120]
[321148817,1711912242326,-500.0,0.00054794,120]
[321148818,1711912242335,-567.74,0.00054794,120]
[321148819,1711912242344,-500.0,0.00054794,120]
[321148820,1711912242354,-500.0,0.00054794,120]
[321148821,1711912242363,-500.0,0.00054794,120]
[321148822,1711912242372,-500.0,0.00054794,120]
[321148823,1711912242382,-500.0,0.00054794,120]
[321148824,1711912242391,-500.0,0.00054794,120]
[321148825,1711912242400,-500.0,0.00054794,120]
[321148826,1711912242409,-500.0,0.00054794,120]
[321148827,1711912242418,-500.0,0.00054794,120]
[321148828,1711912242427,-500.0,0.00054794,120]
[321148829,1711912242437,-168.57174733,0.00054794,120]
[321148830,1711912242446,-500.0,0.00054794,120]
[321148831,1711912242455,-500.0,0.00054794,120]
[321148832,1711912242464,-500.0,0.00054794,120]
[321148833,1711912242472,-500.0,0.00054794,120]
[321148834,1711912242481,-624.48,0.00054794,120]
[321148835,1711912242490,-500.0,0.00054794,120]
[321148836,1711912242499,-500.0,0.00054794,120]
[321148837,1711912242508,-500.0,0.00054794,120]
[321148838,1711912242517,-860.07,0.00054794,120]
[321148839,1711912242526,-1192.99,0.00054794,120]
[321148840,1711912242537,-500.0,0.00054794,120]
[321148841,1711912242546,-500.0,0.00054794,120]
[321148842,1711912242555,-1249.36,0.00054794,21]
[321148843,1711912242564,-500.0,0.00054794,120]
[321148844,1711912242573,-641.41,0.00054794,120]
[321148845,1711912242583,-500.0,0.00054794,120]
[321148846,1711912242592,-500.0,0.00054794,120]
[321148847,1711912242602,-500.0,0.00054794,120]
[321148848,1711912242611,-814.12,0.00054794,120]
[321148849,1711912242621,-500.0,0.00054794,120]
[321148850,1711912242630,-564.34,0.00054794,120]
[321148851,1711912242639,-508.62727046,0.00054794,120]
[321148852,1711912242807,-500.0,0.00054794,120]
[321148853,1711912242817,-500.0,0.00054794,120]
[321148854,1711912242827,-500.0,0.00054794,120]
[321148855,1711912242838,-500.0,0.00054794,120]
[321148856,1711912242848,-500.0,0.00054794,120]
[321148857,1711912242858,-500.0,0.00054794,120]
[321148859,1711912242868,-510.15,0.00054794,120]
[321148862,1711912242878,-500.0,0.00054794,120]
[321148864,1711912242888,-617.6,0.00054794,120]
[321148866,1711912242899,-622.19677548,0.00054794,120]
[321148868,1711912242908,-678.55,0.00054794,120]
[321148870,1711912242919,-500.0,0.00054794,120]
[321148873,1711912242928,-500.0,0.00054794,120]
[321148874,1711912242938,-500.0,0.00054794,120]
[321148876,1711912242949,-500.0,0.00054794,120]
[321148877,1711912242959,-500.0,0.00054794,120]
[321148878,1711912242968,-500.0,0.00054794,120]
[321148879,1711912242978,-513.96785531,0.00054794,120]
[321148880,1711912242987,-500.0,0.00054794,120]
[321148881,1711912242997,-648.14,0.00054794,120]
[321148882,1711912243006,-500.0,0.00054794,120]
[321148883,1711912243015,-611.97,0.00054794,120]
[321148884,1711912243025,-500.0,0.00054794,120]
[321148885,1711912243035,-510.23518389,0.00054794,120]
[321148886,1711912243045,-434.07735691,0.00054794,120]
[321148887,1711912243055,-500.0,0.00054794,120]
[321148888,1711912243064,-500.0,0.00054794,120]
[321148889,1711912243073,-723.57,0.00054794,120]
[321148890,1711912243083,-500.0,0.00054794,120]
[321148891,1711912243092,-500.0,0.00054794,120]
[321148892,1711912243101,-955.76,0.00054794,120]
[321148893,1711912243111,-500.0,0.00054794,120]
[321148894,1711912243120,-366.89702441,0.00054794,120]
[321148895,1711912243129,-511.20835537,0.00054794,120]
[321148896,1711912243140,-513.11962531,0.00054794,120]
[321148897,1711912243149,-533.04,0.00054794,120]
[321148898,1711912243158,-500.0,0.00054794,120]
[321148899,1711912243169,-500.0,0.00054794,120]
[321148900,1711912243178,-1479.22,0.00054794,120]
[321148901,1711912243187,-500.0,0.00054794,120]
[321148902,1711912243197,-500.0,0.00054794,120]
[321148903,1711912243207,-500.0,0.00054794,120]
[321148904,1711912243216,-891.31,0.00054794,120]
[321148905,1711912243225,-500.0,0.00054794,120]
[321148906,1711912243235,-514.14859936,0.00054794,120]
[321148907,1711912243245,-2510.49,0.00054794,120]
[321148908,1711912243255,-500.0,0.00054794,120]
[321148909,1711912243264,-500.0,0.00054794,120]
[321148910,1711912243273,-500.0,0.00054794,120]
[321148911,1711912243283,-500.0,0.00054794,120]
[321148912,1711912243292,-500.0,0.00054794,120]
[321148913,1711912243301,-500.0,0.00054794,120]
[321148914,1711912243310,-500.0,0.00054794,120]
[321148915,1711912243320,-509.23285855,0.00054794,120]
[321148916,1711912243330,-500.0,0.00054794,120]
[321148917,1711912243339,-500.0,0.00054794,120]
[321148918,1711912243348,-1612.29,0.00054794,120]
[321148919,1711912243357,-512.95273361,0.00054794,120]
[321148920,1711912243366,-2390.26,0.00054794,120]
[321148921,1711912243376,-500.0,0.00054794,120]
[321148922,1711912243385,-511.97271314,0.00054794,120]
[321148923,1711912243394,-500.0,0.00054794,120]
[321148924,1711912243403,-500.0,0.00054794,120]
[321148925,1711912243412,-500.0,0.00054794,120]
[321148926,1711912243422,-500.0,0.00054794,120]
[321148927,1711912243432,-500.0,0.00054794,120]
[321148928,1711912243441,-500.0,0.00054794,120]
[321148929,1711912243450,-500.0,0.00054794,120]
[321148930,1711912243460,-500.0,0.00054794,120]
[321148931,1711912243469,-500.0,0.00054794,120]
[321148932,1711912243478,-500.0,0.00054794,120]
[321148933,1711912243487,-1950.2,0.00054794,120]
[321148934,1711912243497,-1183.67,0.00054794,120]
[321148935,1711912243507,-500.0,0.00054794,120]
[321148936,1711912243516,-500.0,0.00054794,120]
[321148937,1711912243525,-1486.98,0.00054794,120]
[321148938,1711912243534,-769.12,0.00054794,120]
[321148939,1711912243544,-528.18582391,0.00054794,120]
[321148940,1711912243554,-536.61,0.00054794,120]
[321148941,1711912243565,-500.0,0.00054794,120]
[321148943,1711912243574,-500.0,0.00054794,120]
[321148944,1711912243583,-541.06,0.00054794,120]
[321148945,1711912243592,-514.20928611,0.00054794,120]
[321148946,1711912243602,-637.34,0.00054794,120]
[321148947,1711912243611,-949.35,0.00054794,120]
[321148948,1711912243620,-535.97,0.00054794,120]
[321148950,1711912243629,-522.16,0.00054794,120]
[321148951,1711912243638,-1656.56,0.00054794,120]
[321148952,1711912243647,-510.53602015,0.00054794,120]
[321148953,1711912243657,-500.0,0.00054794,120]
[321148954,1711912243666,-605.48,0.00054794,120]
[321148955,1711912243676,-500.0,0.00054794,120]
[321148956,1711912243685,-500.0,0.00054794,120]
[321148957,1711912243694,-506.73711929,0.00054794,120]
[321148958,1711912243703,-641.17,0.00054794,120]
[321148959,1711912243713,-500.0,0.00054794,120]
[321148960,1711912243722,-523.21683431,0.00054794,120]
[321148961,1711912243731,-501.73,0.00054794,120]
[321148962,1711912243741,-500.0,0.00054794,120]
[321148963,1711912243750,-500.0,0.00054794,120]
[321148964,1711912243761,-848.71,0.00054794,120]
[321148965,1711912243770,-500.0,0.00054794,120]
[321148966,1711912243780,-1686.96,0.00054794,120]
[321148967,1711912243789,-513.93693519,0.00054794,120]
[321148968,1711912243799,-513.59879294,0.00054794,120]
[321148969,1711912243808,-723.69,0.00054794,120]
[321148970,1711912243817,-503.53,0.00054794,120]
[321148971,1711912243827,-764.27,0.00054794,120]
[321148972,1711912243840,-1403.52,0.00054794,120]
[321148973,1711912243850,-764.27,0.00054794,120]
[321148974,1711912243859,-764.27,0.00054794,120]
[321148975,1711912243868,-764.27,0.00054794,120]
[321148976,1711912243878,-500.0,0.00054794,120]
[321148977,1711912243887,-764.27,0.00054794,120]
[321148978,1711912243896,-764.27,0.00054794,120]
[321148979,1711912243906,-1181.38,0.00054794,120]
[321148980,1711912243915,-764.27,0.00054794,120]
[321148981,1711912243926,-764.27,0.00054794,120]
[321148982,1711912243935,-764.27,0.00054794,120]
[321148983,1711912243944,-500.0,0.00054794,120]
[321148984,1711912243953,-764.27,0.00054794,120]
[321148985,1711912243963,-3493.9,0.00054794,120]
[321148986,1711912243972,-500.0,0.00054794,120]
[321148987,1711912243982,-500.0,0.00054794,120]
[321148988,1711912243992,-500.0,0.00054794,120]
[321148989,1711912244001,-975.21,0.00054794,120]
[321148990,1711912244010,-806.03,0.00054794,120]
[321148991,1711912244019,-500.0,0.00054794,120]
[321148992,1711912244029,-506.51805632,0.00054794,120]
[321148993,1711912244039,-500.0,0.00054794,120]
[321148994,1711912244048,-500.0,0.00054794,120]
[321148995,1711912244057,-500.0,0.00054794,120]
[321148996,1711912244067,-515.88082734,0.00054794,120]
[321148997,1711912244075,-6777.33,0.00054794,120]
[321148998,1711912244085,-3043.05,0.00054794,120]
[321148999,1711912244094,-522.07582123,0.00054794,120]
[321149000,1711912244103,-500.0,0.00054794,120]
[321149001,1711912244112,-500.0,0.00054794,120]
[321149002,1711912244121,-531.98098494,0.00054794,120]
[321149003,1711912244130,-500.0,0.00054794,16]
[321149004,1711912244139,-500.0,0.00054794,120]
[321149005,1711912244148,-5108.89,0.00054794,120]
[321149006,1711912244157,-500.0,0.00054794,120]
[321149007,1711912244166,-3698.74,0.00054794,120]
[321149008,1711912244176,-500.0,0.00054794,120]
[321149009,1711912244185,-500.0,0.00054794,120]